fUSD/lending_fUSD_20260217
["ID","MTS","AMOUNT","RATE_DAILY","PERIOD"]
[405818085,1771336239922,-500.0,9.041e-05,2]
[405818087,1771336239936,-500.0,9.073e-05,2]
[405818090,1771336239950,-446.0,9.096e-05,2]
[405818092,1771336239961,-500.0,9.128e-05,2]
[405818094,1771336239971,-446.0,9.151e-05,2]
[405818096,1771336239984,-166.66,9.152e-05,2]
[405818098,1771336239994,-500.0,9.182e-05,2]
[405818100,1771336240004,-446.0,9.205e-05,2]
[405818102,1771336240015,-500.0,9.237e-05,2]
[405818104,1771336240025,-446.0,9.26e-05,2]
[405818106,1771336240035,-500.0,9.292e-05,2]
[405818108,1771336240046,-446.0,9.315e-05,2]
[405818110,1771336240056,-500.0,9.315e-05,2]
[405818112,1771336240066,-500.0,9.347e-05,2]
[405818114,1771336240076,-446.0,9.37e-05,2]
[405818116,1771336240086,-500.0,9.402e-05,2]
[405818118,1771336240096,-446.0,9.424e-05,2]
[405818120,1771336240105,-166.66,9.427e-05,2]
[405818122,1771336240115,-500.0,9.456e-05,2]
[405818124,1771336240125,-464.28296803,9.479e-05,2]
[405818126,1771336240135,-500.0,9.511e-05,2]
[405818128,1771336240145,-252.2655769,9.566e-05,2]
[405818130,1771336240155,-500.0,9.589e-05,2]
[405818132,1771336240165,-1252.0,9.597e-05,2]
[405818133,1771336240175,-4609.0,9.598e-05,2]
[405818136,1771336240186,-1152.0,9.598e-05,2]
[405818138,1771336240196,-166.66,9.701e-05,2]
[405818140,1771336240206,-4673.957635,9.828e-05,2]
[405818142,1771336240217,-500.0,9.863e-05,2]
[405818144,1771336240226,-325.22995652,0.0001,2]
[405818146,1771336240236,-1000.0,0.0001,2]
[405818148,1771336240246,-151.0,0.0001,2]
[405818150,1771336240257,-151.0,0.0001,2]
[405818152,1771336240267,-151.0,0.0001,2]
[405818153,1771336240277,-151.0,0.0001,2]
[405818154,1771336240288,-151.0,0.0001,2]
[405818155,1771336240299,-151.0,0.0001,2]
[405818156,1771336240308,-151.0,0.0001,2]
[405818157,1771336240318,-151.0,0.0001,2]
[405818158,1771336240329,-151.0,0.0001,2]
[405818159,1771336240339,-151.0,0.0001,2]
[405818160,1771336240349,-151.0,0.0001,2]
[405818161,1771336240359,-151.0,0.0001,2]
[405818162,1771336240369,-151.0,0.0001,2]
[405818163,1771336240677,-151.0,0.0001,2]
[405818164,1771336240698,-151.0,0.0001,2]
[405818165,1771336240708,-151.0,0.0001,2]
[405818166,1771336240718,-151.0,0.0001,2]
[405818167,1771336240728,-151.0,0.0001,2]
[405818168,1771336240738,-151.0,0.0001,2]
[405818169,1771336240747,-151.0,0.0001,2]
[405818170,1771336240757,-151.0,0.0001,2]
[405818171,1771336240767,-151.0,0.0001,2]
[405818172,1771336240777,-151.0,0.0001,2]
[405818173,1771336240787,-194.04699193,0.0001,2]
[405818174,1771336240796,-194.04699193,0.0001,2]
[405818175,1771336240806,-151.0,0.0001,2]
[405818176,1771336240816,-194.04699193,0.0001,2]
[405818177,1771336240827,-151.0,0.0001,2]
[405818178,1771336240836,-151.0,0.0001,2]
[405818179,1771336240845,-151.0,0.0001,2]
[405818180,1771336240859,-875.94052204,0.0001,2]
[405818181,1771336240868,-1069.5371637,0.0001,2]
[405818182,1771336240878,-1069.5371637,0.0001,2]
[405818183,1771336240888,-500.0,0.00010137,2]
[405818184,1771336240899,-9008.894874,0.00010474,2]
[405818185,1771336240908,-1873.720256,0.00010474,2]
[405818186,1771336240918,-6453.0,0.00010558,2]
[405818187,1771336240929,-1561.0,0.00010558,2]
[405818188,1771336240944,-500.0,0.00010779,2]
[405818189,1771336240955,-500.0,0.00010779,2]
[405818190,1771336240965,-500.0,0.00010779,2]
[405818191,1771336240975,-500.0,0.00010779,2]
[405818192,1771336240985,-500.0,0.00010779,2]
[405818193,1771336240996,-501.91469827,0.00010779,2]
[405818194,1771336241007,-500.0,0.00010779,2]
[405818195,1771336241017,-500.0,0.00010779,2]
[405818196,1771336241026,-500.0,0.00010779,2]
[405818197,1771336241037,-5736.12832924,0.000109,2]
[405818198,1771336241048,-5736.12832918,0.000109,2]
[405818199,1771336241058,-5736.12832918,0.000109,2]
[405818200,1771336241068,-150.0,0.00010959,2]
[405818201,1771336241078,-166.66,0.00010959,2]
[405818202,1771336241087,-166.66,0.00011068,2]
[405818203,1771336241097,-11526.71888634,0.00011099,2]
[405818204,1771336241107,-11526.71888631,0.00011099,2]
[405818205,1771336241117,-11526.71888631,0.00011099,2]
[405818206,1771336241127,-11526.71888631,0.00011099,2]
[405818207,1771336241137,-4404.2853722,0.00011099,2]
[405818208,1771336241146,-4404.28537215,0.00011099,2]
[405818209,1771336241156,-4404.28537215,0.00011099,2]
[405818210,1771336241165,-4404.28537215,0.00011099,2]
[405818211,1771336241174,-267.0,0.00011164,3]
[405818212,1771336241192,-166.66,0.00011178,2]
[405818213,1771336241201,-7397.51,0.00011233,2]
[405818214,1771336241211,-166.66,0.00011288,2]
[405818215,1771336241221,-506.61106656,0.00011327,2]
[405818216,1771336241230,-1000.99582071,0.00011327,2]
[405818217,1771336241239,-1000.0,0.00011327,2]
[405818218,1771336241249,-500.0,0.00011327,2]
[405818219,1771336241259,-1000.0,0.00011327,2]
[405818220,1771336241268,-501.42081888,0.00011327,2]
[405818221,1771336241277,-1000.0,0.00011327,2]
[405818222,1771336241287,-1008.54082512,0.00011327,2]
[405818223,1771336241297,-5736.12832918,0.00011375,2]
[405818224,1771336241307,-166.66,0.00011397,2]
[405818225,1771336241316,-150.0,0.0001142,2]
[405818226,1771336241326,-232.285005,0.0001142,2]
[405818227,1771336241335,-314.570011,0.0001142,2]
[405818228,1771336241345,-396.855017,0.0001142,2]
[405818229,1771336241355,-479.140023,0.0001142,2]
[405818230,1771336241365,-561.425029,0.0001142,2]
[405818231,1771336241374,-643.710035,0.0001142,2]
[405818232,1771336241384,-725.995041,0.0001142,2]
[405818233,1771336241393,-808.280047,0.0001142,2]
[405818234,1771336241403,-890.565053,0.0001142,2]
[405818235,1771336241413,-166.66,0.00011507,2]
[405818236,1771336241422,-4194.14,0.00011552,2]
[405818237,1771336241437,-11526.71888631,0.00011557,2]
[405818238,1771336241446,-9035.0,0.00011614,2]
[405818239,1771336241455,-4404.28537215,0.00011616,2]
[405818240,1771336241464,-1500.0,0.00011875,2]
[405818241,1771336241474,-1500.0,0.00011875,2]
[405818242,1771336241483,-368.72151799,0.00011875,2]
[405818243,1771336241492,-875.94052203,0.00012191,2]
[405818244,1771336241501,-10040.43634857,0.00012191,2]
[405818245,1771336241510,-5550.94006046,0.00012191,2]
[405818246,1771336241520,-4894.25746554,0.000123,2]
[405818247,1771336241530,-299.80965345,0.00012423,2]
[405818248,1771336241539,-1502.39964348,0.00012423,2]
[405818249,1771336241548,-267.0,0.00012682,3]
[405818250,1771336241557,-9136.0,0.00012775,2]
[405818251,1771336241567,-11526.71888631,0.00012825,2]
[405818252,1771336241576,-4404.28537215,0.00012872,2]
[405818253,1771336241585,-791.09059454,0.00013,2]
[405818254,1771336241594,-5736.12832918,0.00013007,2]
[405818255,1771336241603,-7270.600766,0.00013104,2]
[405818256,1771336241612,-4587.476,0.00013598,2]
[405818257,1771336241621,-500.0,0.00013698,2]
[405818258,1771336241630,-500.0,0.00013698,2]
[405818259,1771336241640,-500.0,0.00013698,2]
[405818260,1771336241649,-500.0,0.00013698,2]
[405818261,1771336241659,-500.0,0.00013698,2]
[405818262,1771336241668,-500.0,0.00013698,2]
[405818263,1771336241677,-500.0,0.00013698,2]
[405818264,1771336241690,-500.0,0.00013698,2]
[405818265,1771336241700,-500.0,0.00013698,2]
[405818266,1771336241709,-500.0,0.00013698,2]
[405818267,1771336241718,-500.0,0.00013698,2]
[405818268,1771336241727,-500.0,0.00013698,2]
[405818269,1771336241737,-500.0,0.00013698,2]
[405818270,1771336241746,-500.0,0.00013698,2]
[405818271,1771336241755,-500.0,0.00013698,2]
[405818272,1771336241765,-500.0,0.00013698,2]
[405818273,1771336241774,-500.0,0.00013698,2]
[405818274,1771336241783,-500.0,0.00013698,2]
[405818275,1771336241793,-500.0,0.00013698,2]
[405818276,1771336241802,-307.44205355,0.00013698,2]
[405818277,1771336241812,-500.0,0.00013698,2]
[405818278,1771336241821,-500.0,0.00013698,2]
[405818279,1771336241832,-500.0,0.00013698,2]
[405818280,1771336241841,-500.0,0.00013698,2]
[405818281,1771336241852,-500.0,0.00013698,2]
[405818282,1771336241863,-500.0,0.00013698,2]
[405818283,1771336241872,-500.0,0.00013698,2]
[405818284,1771336241883,-500.0,0.00013698,2]
[405818285,1771336241892,-500.0,0.00013698,2]
[405818286,1771336241902,-500.0,0.00013698,2]
[405818287,1771336241911,-500.0,0.00013698,2]
[405818288,1771336241922,-500.0,0.00013698,2]
[405818289,1771336241932,-500.0,0.00013698,2]
[405818290,1771336241942,-500.0,0.00013698,2]
[405818291,1771336241951,-500.0,0.00013698,2]
[405818292,1771336241961,-500.0,0.00013698,2]
[405818293,1771336241970,-500.0,0.00013698,2]
[405818294,1771336241979,-500.0,0.00013698,2]
[405818295,1771336241989,-500.0,0.00013698,2]
[405818296,1771336241999,-500.0,0.00013698,2]
[405818297,1771336242009,-500.0,0.00013698,2]
[405818298,1771336242020,-500.0,0.00013698,2]
[405818299,1771336242029,-500.0,0.00013698,2]
[405818300,1771336242038,-500.0,0.00013698,2]
[405818301,1771336242048,-500.0,0.00013698,2]
[405818302,1771336242057,-500.0,0.00013698,2]
[405818303,1771336242067,-500.0,0.00013698,2]
[405818304,1771336242076,-500.0,0.00013698,2]
[405818305,1771336242085,-500.0,0.00013698,2]
[405818306,1771336242097,-161.76553767,0.00013698,2]
[405818307,1771336242107,-500.0,0.00013698,2]
[405818308,1771336242117,-500.0,0.00013698,2]
[405818309,1771336242128,-500.0,0.00013698,2]
[405818310,1771336242139,-500.0,0.00013698,2]
[405818311,1771336242149,-500.0,0.00013698,2]
[405818312,1771336242160,-500.0,0.00013698,2]
[405818313,1771336242175,-500.0,0.00013698,2]
[405818314,1771336242193,-500.0,0.00013698,2]
[405818315,1771336242203,-500.0,0.00013698,2]
[405818316,1771336242216,-500.0,0.00013698,2]
[405818317,1771336242227,-500.0,0.00013698,2]
[405818318,1771336242237,-500.0,0.00013698,2]
[405818319,1771336242247,-500.0,0.00013698,2]
[405818320,1771336242258,-500.0,0.00013698,2]
[405818321,1771336242268,-500.0,0.00013698,2]
[405818322,1771336242279,-500.0,0.00013698,2]
[405818323,1771336242289,-500.0,0.00013698,2]
[405818324,1771336242299,-500.0,0.00013698,2]
[405818326,1771336242309,-500.0,0.00013698,2]
[405818329,1771336242320,-500.0,0.00013698,2]
[405818331,1771336242330,-277.8358357,0.00013698,2]
[405818333,1771336242340,-500.0,0.00013698,2]
[405818334,1771336242350,-500.0,0.00013698,2]
[405818335,1771336242360,-500.0,0.00013698,2]
[405818336,1771336242370,-500.0,0.00013698,2]
[405818337,1771336242380,-500.0,0.00013698,2]
[405818338,1771336242389,-500.0,0.00013698,2]
[405818339,1771336242399,-500.0,0.00013698,2]
[405818340,1771336242409,-500.0,0.00013698,2]
[405818341,1771336242422,-500.0,0.00013698,2]
[405818342,1771336242438,-500.0,0.00013698,2]
[405818343,1771336242449,-391.46615766,0.00013698,2]
[405818345,1771336242458,-669.78,0.00013698,2]
[405818346,1771336242469,-669.78,0.00013698,2]
[405818347,1771336242479,-669.78,0.00013698,2]
[405818348,1771336242489,-669.78,0.00013698,2]
[405818350,1771336242498,-669.78,0.00013698,2]
[405818351,1771336242508,-669.78,0.00013698,2]
[405818352,1771336242518,-669.78,0.00013698,2]
[405818353,1771336242528,-669.78,0.00013698,2]
[405818354,1771336242538,-669.78,0.00013698,2]
[405818355,1771336242547,-669.78,0.00013698,2]
[405818356,1771336242557,-669.78,0.00013698,2]
[405818357,1771336242567,-669.78,0.00013698,2]
[405818358,1771336242576,-669.78,0.00013698,2]
[405818359,1771336242586,-669.78,0.00013698,2]
[405818360,1771336242596,-669.78,0.00013698,2]
[405818361,1771336242606,-669.78,0.00013698,2]
[405818362,1771336242616,-500.0,0.00013698,2]
[405818363,1771336242626,-500.0,0.00013698,2]
[405818364,1771336242636,-500.0,0.00013698,2]
[405818365,1771336242646,-500.0,0.00013698,2]
[405818366,1771336242656,-500.0,0.00013698,2]
[405818367,1771336242666,-198.32029041,0.00013698,2]
[405818368,1771336242677,-763.46,0.00013698,2]
[405818369,1771336242696,-763.46,0.00013698,2]
[405818370,1771336242706,-763.46,0.00013698,2]
[405818371,1771336242716,-763.46,0.00013698,2]
[405818372,1771336242729,-763.46,0.00013698,2]
[405818373,1771336242739,-763.46,0.00013698,2]
[405818374,1771336242749,-763.46,0.00013698,2]
[405818375,1771336242759,-763.46,0.00013698,2]
[405818376,1771336242768,-763.46,0.00013698,2]
[405818377,1771336242778,-763.46,0.00013698,2]
[405818378,1771336242788,-763.46,0.00013698,2]
[405818379,1771336242798,-763.46,0.00013698,2]
[405818380,1771336242808,-763.46,0.00013698,2]
[405818381,1771336242818,-763.46,0.00013698,2]
[405818382,1771336242828,-763.46,0.00013698,2]
[405818383,1771336242842,-763.46,0.00013698,2]
[405818384,1771336242851,-500.0,0.00013698,2]
[405818385,1771336242861,-500.0,0.00013698,2]
[405818386,1771336242871,-500.0,0.00013698,2]
[405818387,1771336242884,-500.0,0.00013698,2]
[405818388,1771336242894,-500.0,0.00013698,2]
[405818389,1771336242903,-500.0,0.00013698,2]
[405818390,1771336242914,-500.0,0.00013698,2]
[405818391,1771336242924,-500.0,0.00013698,2]
[405818392,1771336242941,-500.0,0.00013698,2]
[405818393,1771336242951,-500.0,0.00013698,2]
[405818394,1771336242961,-500.0,0.00013698,2]
[405818395,1771336242971,-500.0,0.00013698,2]
[405818396,1771336242981,-500.0,0.00013698,2]
[405818397,1771336242991,-500.0,0.00013698,2]
[405818398,1771336243001,-508.20125622,0.00013698,2]
[405818399,1771336243010,-500.0,0.00013698,2]
[405818400,1771336243020,-500.0,0.00013698,2]
[405818401,1771336243030,-500.0,0.00013698,2]
[405818402,1771336243040,-500.0,0.00013698,2]
[405818403,1771336243049,-500.0,0.00013698,2]
[405818404,1771336243059,-500.0,0.00013698,2]
[405818405,1771336243068,-500.0,0.00013698,2]
[405818406,1771336243077,-500.0,0.00013698,2]
[405818407,1771336243087,-500.0,0.00013698,2]
[405818408,1771336243097,-500.0,0.00013698,2]
[405818409,1771336243107,-500.0,0.00013698,2]
[405818410,1771336243117,-500.0,0.00013698,2]
[405818411,1771336243127,-500.0,0.00013698,2]
[405818412,1771336243137,-500.0,0.00013698,2]
[405818413,1771336243147,-500.0,0.00013698,2]
[405818414,1771336243157,-197.6651859,0.00013698,2]
[405818415,1771336243167,-500.0,0.00013698,2]
[405818416,1771336243176,-500.0,0.00013698,2]
[405818417,1771336243188,-500.0,0.00013698,2]
[405818419,1771336243198,-500.0,0.00013698,2]
[405818420,1771336243208,-522.2154278,0.00013698,2]
[405818421,1771336243218,-669.19,0.00013698,2]
[405818422,1771336243228,-669.19,0.00013698,2]
[405818423,1771336243238,-669.19,0.00013698,2]
[405818424,1771336243247,-669.19,0.00013698,2]
[405818425,1771336243257,-669.19,0.00013698,2]
[405818426,1771336243267,-669.19,0.00013698,2]
[405818427,1771336243276,-669.19,0.00013698,2]
[405818428,1771336243286,-669.19,0.00013698,2]
[405818429,1771336243296,-669.19,0.00013698,2]
[405818430,1771336243307,-669.19,0.00013698,2]
[405818431,1771336243317,-669.19,0.00013698,2]
[405818432,1771336243327,-669.19,0.00013698,2]
[405818433,1771336243337,-669.19,0.00013698,2]
[405818434,1771336243347,-669.19,0.00013698,2]
[405818435,1771336243357,-669.19,0.00013698,2]
[405818436,1771336243367,-669.19,0.00013698,2]
[405818438,1771336243376,-456.05800986,0.00013698,2]
[405818440,1771336243386,-500.0,0.00013698,2]
[405818442,1771336243396,-500.0,0.00013698,2]
[405818444,1771336243406,-500.0,0.00013698,2]
[405818446,1771336243415,-500.0,0.00013698,2]
[405818448,1771336243425,-500.0,0.00013698,2]
[405818449,1771336243437,-500.0,0.00013698,2]
[405818450,1771336243447,-500.0,0.00013698,2]
[405818451,1771336243456,-500.0,0.00013698,2]
[405818452,1771336243466,-500.0,0.00013698,2]
[405818453,1771336243475,-500.0,0.00013698,2]
[405818454,1771336243485,-500.0,0.00013698,2]
[405818455,1771336243495,-465.55674509,0.00013698,2]
[405818456,1771336243504,-500.0,0.00013698,2]
[405818457,1771336243514,-500.0,0.00013698,2]
[405818458,1771336243524,-500.0,0.00013698,2]
[405818459,1771336243533,-500.0,0.00013698,2]
[405818460,1771336243542,-500.0,0.00013698,2]
[405818461,1771336243552,-500.0,0.00013698,2]
[405818462,1771336243561,-500.0,0.00013698,2]
[405818463,1771336243571,-500.0,0.00013698,2]
[405818464,1771336243580,-500.0,0.00013698,2]
[405818465,1771336243589,-500.0,0.00013698,2]
[405818466,1771336243599,-500.0,0.00013698,2]
[405818467,1771336243608,-500.0,0.00013698,2]
[405818468,1771336243618,-500.0,0.00013698,2]
[405818469,1771336243628,-500.0,0.00013698,2]
[405818470,1771336243638,-500.0,0.00013698,2]
[405818471,1771336243648,-500.0,0.00013698,2]
[405818472,1771336243658,-503.77565291,0.00013698,2]
[405818473,1771336243668,-500.0,0.00013698,2]
[405818474,1771336243677,-500.0,0.00013698,2]
[405818475,1771336243688,-500.0,0.00013698,2]
[405818476,1771336243698,-551.5931465,0.00013698,2]
[405818477,1771336243708,-535.55684817,0.00013698,2]
[405818478,1771336243721,-500.0,0.00013698,2]
[405818479,1771336243731,-500.0,0.00013698,2]
[405818480,1771336243743,-500.0,0.00013698,2]
[405818481,1771336243753,-639.90682726,0.00013698,2]
[405818482,1771336243763,-420.48,0.00013698,2]
[405818483,1771336243773,-349.69131006,0.00013698,2]
[405818484,1771336243782,-500.0,0.00013698,2]
[405818485,1771336243792,-500.0,0.00013698,2]
[405818486,1771336243802,-500.0,0.00013698,2]
[405818487,1771336243811,-500.0,0.00013698,2]
[405818488,1771336243821,-500.0,0.00013698,2]
[405818489,1771336243831,-500.0,0.00013698,2]
[405818490,1771336243841,-500.0,0.00013698,2]
[405818491,1771336243851,-500.0,0.00013698,2]
[405818492,1771336243864,-500.0,0.00013698,2]
[405818493,1771336243874,-500.0,0.00013698,2]
[405818494,1771336243884,-500.0,0.00013698,2]
[405818495,1771336243895,-500.0,0.00013698,2]
[405818496,1771336243904,-500.0,0.00013698,2]
[405818497,1771336243914,-500.0,0.00013698,2]
[405818498,1771336243927,-500.0,0.00013698,2]
[405818499,1771336243941,-500.0,0.00013698,2]
[405818500,1771336243951,-500.0,0.00013698,2]
[405818501,1771336243960,-500.0,0.00013698,2]
[405818502,1771336243969,-511.5660924,0.00013698,2]
[405818503,1771336243979,-500.0,0.00013698,2]
[405818504,1771336243988,-529.40507312,0.00013698,2]
[405818505,1771336243998,-500.0,0.00013698,2]
[405818506,1771336244007,-500.0,0.00013698,2]
[405818507,1771336244017,-536.56841648,0.00013698,2]
[405818508,1771336244026,-500.0,0.00013698,2]
[405818509,1771336244035,-500.0,0.00013698,2]
[405818510,1771336244045,-500.0,0.00013698,2]
[405818511,1771336244054,-156.33002301,0.00013698,2]
[405818512,1771336244064,-200.0,0.00013699,2]
[405818513,1771336244073,-712.99,0.00013699,2]
[405818514,1771336244083,-151.02878078,0.00013699,2]
[405818515,1771336244092,-6503.531586,0.00013703,7]
[405818516,1771336244101,-30029.649581,0.00013965,7]
[405818517,1771336244110,-4372.013932,0.00013965,7]
[405818518,1771336244120,-420.48,0.00013972,2]
[405818519,1771336244129,-500.0,0.00014,2]
[405818520,1771336244138,-669.72717537,0.00014,2]
[405818521,1771336244148,-11526.71888631,0.00014094,2]
[405818522,1771336244158,-4404.28537215,0.00014129,2]
[405818523,1771336244167,-267.0,0.00014199,3]
[405818524,1771336244177,-420.48,0.00014246,2]
[405818525,1771336244189,-151.0,0.00014384,4]
[405818526,1771336244198,-420.48,0.0001452,2]
[405818527,1771336244208,-500.0,0.00014562,4]
[405818528,1771336244218,-500.0,0.00014562,4]
[405818529,1771336244227,-503.55960548,0.00014562,4]
[405818530,1771336244236,-151.0,0.00014562,4]
[405818531,1771336244246,-151.0,0.00014562,4]
[405818532,1771336244255,-500.0,0.00014562,4]
[405818533,1771336244264,-500.0,0.00014562,4]
[405818534,1771336244274,-500.0,0.00014562,4]
[405818535,1771336244283,-500.0,0.00014562,4]
[405818536,1771336244292,-500.0,0.00014562,4]
[405818537,1771336244302,-500.0,0.00014562,4]
[405818538,1771336244311,-500.0,0.00014562,4]
[405818539,1771336244321,-151.0,0.00014562,4]
[405818540,1771336244330,-500.0,0.00014562,4]
[405818541,1771336244339,-151.0,0.00014562,4]
[405818542,1771336244349,-500.0,0.00014562,4]
[405818543,1771336244359,-151.0,0.00014562,4]
[405818544,1771336244368,-500.0,0.00014562,4]
[405818545,1771336244377,-151.0,0.00014562,4]
[405818546,1771336244387,-500.0,0.00014562,4]
[405818547,1771336244396,-151.0,0.00014562,4]
[405818548,1771336244406,-151.0,0.00014562,4]
[405818549,1771336244415,-151.0,0.00014562,4]
[405818550,1771336244424,-151.0,0.00014562,4]
[405818551,1771336244434,-151.0,0.00014562,4]
[405818552,1771336244447,-200.0,0.00014562,4]
[405818553,1771336244457,-500.0,0.00014562,4]
[405818554,1771336244466,-200.0,0.00014562,4]
[405818555,1771336244475,-500.0,0.00014562,4]
[405818556,1771336244485,-200.0,0.00014562,4]
[405818557,1771336244494,-226.88409827,0.00014562,4]
[405818558,1771336244503,-200.0,0.00014562,4]
[405818559,1771336244512,-500.0,0.00014562,4]
[405818560,1771336244522,-200.0,0.00014562,4]
[405818561,1771336244531,-500.0,0.00014562,4]
[405818562,1771336244540,-200.0,0.00014562,4]
[405818563,1771336244550,-200.0,0.00014562,4]
[405818564,1771336244559,-200.0,0.00014562,4]
[405818565,1771336244568,-500.0,0.00014562,4]
[405818566,1771336244578,-200.0,0.00014562,4]
[405818567,1771336244587,-201.41552809,0.00014562,4]
[405818568,1771336244597,-500.0,0.00014562,4]
[405818569,1771336244606,-200.0,0.00014562,4]
[405818570,1771336244615,-500.0,0.00014562,4]
[405818571,1771336244625,-500.0,0.00014562,4]
[405818572,1771336244635,-200.0,0.00014562,4]
[405818573,1771336244645,-200.0,0.00014562,4]
[405818574,1771336244654,-500.0,0.00014562,4]
[405818575,1771336244663,-200.0,0.00014562,4]
[405818576,1771336244672,-500.0,0.00014562,4]
[405818577,1771336244684,-201.77822118,0.00014562,4]
[405818578,1771336244694,-500.0,0.00014562,4]
[405818579,1771336244704,-500.0,0.00014562,4]
[405818580,1771336244713,-500.0,0.00014562,4]
[405818581,1771336244723,-151.0,0.00014634,2]
[405818582,1771336244733,-151.0,0.00014634,2]
[405818583,1771336244742,-5736.12832918,0.00014638,2]
[405818584,1771336244752,-420.49490725,0.00014794,2]
[405818585,1771336244763,-500.0,0.00014958,2]
[405818586,1771336244773,-216.81997101,0.00015,5]
[405818587,1771336244786,-250.0,0.00015,2]
[405818588,1771336244797,-23747.49,0.00015266,2]
[405818589,1771336244807,-11526.71888631,0.00015363,2]
[405818590,1771336244816,-4404.28537215,0.00015386,2]
[405818591,1771336245054,-306.51422453,0.00015546,2]
[405818592,1771336245064,-484.11558281,0.00015649,2]
[405818593,1771336245074,-267.0,0.00015717,3]
[405818594,1771336245083,-173.57638878,0.00015742,2]
[405818595,1771336245093,-160.0,0.00015742,2]
[405818596,1771336245102,-743.50770149,0.00015817,2]
[405818597,1771336245111,-1428.38747117,0.00015817,2]
[405818598,1771336245120,-151.0,0.00015817,2]
[405818599,1771336245130,-151.0,0.00015817,2]
[405818600,1771336245139,-151.0,0.00015817,2]
[405818601,1771336245148,-250.0,0.00015817,2]
[405818602,1771336245158,-151.0,0.00015817,2]
[405818603,1771336245167,-160.0,0.00015817,2]
[405818604,1771336245180,-151.0,0.00015817,2]
[405818605,1771336245190,-250.0,0.00015817,2]
[405818606,1771336245200,-151.0,0.00015817,2]
[405818607,1771336245209,-250.0,0.00015817,2]
[405818608,1771336245218,-151.0,0.00015817,2]
[405818609,1771336245227,-250.0,0.00015817,2]
[405818610,1771336245237,-261.90795033,0.00015817,2]
[405818611,1771336245246,-3000.0,0.00015817,2]
[405818612,1771336245255,-250.0,0.00015817,2]
[405818613,1771336245264,-3000.0,0.00015817,2]
[405818614,1771336245274,-250.0,0.00015817,2]
[405818615,1771336245283,-250.0,0.00015817,2]
[405818616,1771336245293,-250.0,0.00015817,2]
[405818617,1771336245302,-250.0,0.00015817,2]
[405818618,1771336245311,-9552.16786547,0.00015817,2]
[405818619,1771336245321,-3000.0,0.00015817,2]
[405818620,1771336245330,-250.0,0.00015817,2]
[405818621,1771336245340,-3000.0,0.00015817,2]
[405818622,1771336245350,-250.0,0.00015817,2]
[405818623,1771336245359,-250.0,0.00015817,2]
[405818624,1771336245368,-174.61919141,0.00015817,2]
[405818625,1771336245378,-3000.0,0.00015817,2]
[405818626,1771336245387,-250.0,0.00015817,2]
[405818627,1771336245396,-279.55615727,0.00015817,2]
[405818628,1771336245406,-3000.0,0.00015817,2]
[405818629,1771336245415,-209.40437684,0.00015817,2]
[405818630,1771336245424,-250.0,0.00015817,2]
[405818631,1771336245447,-3000.0,0.00015817,2]
[405818632,1771336245456,-250.0,0.00015817,2]